fUSD/lending_fUSD_20260528
["ID","MTS","AMOUNT","RATE_DAILY","PERIOD"]
[423183551,1779910254000,-775.4783256,0.00025328,2]
[423183570,1779910254000,-1899.48,0.00025786,2]
[423183574,1779910254000,-3340.90776209,0.00025937,2]
[423183572,1779910254000,-12417.34133653,0.00025833,2]
[423183545,1779910254000,-350.0,0.00025236,2]
[423183594,1779910254000,-208.97895572,0.00026,10]
[423183578,1779910254000,-472.7,0.00025981,2]
[423183568,1779910254000,-3340.90776209,0.0002572,2]
[423183582,1779910254000,-27370.67752434,0.00026,10]
[423183580,1779910254000,-1092.26222106,0.00025999,10]
[423183584,1779910254000,-250.0,0.00026,2]
[423183588,1779910254000,-500.0,0.00026,2]
[423183586,1779910254000,-550.0,0.00026,2]
[423183590,1779910254000,-160.0,0.00026,10]
[423183576,1779910254000,-3340.90776209,0.00025949,2]
[423183596,1779910254000,-2184.81119312,0.00026005,2]
[423183598,1779910254000,-501.0,0.00026046,3]
[423183600,1779910254000,-12691.57802001,0.00026096,2]
[423183740,1779910255000,-616.37,0.00027518,30]
[423183755,1779910255000,-350.28,0.0002762,30]
[423183722,1779910255000,-4343.67,0.000274,2]
[423183745,1779910255000,-159.54,0.0002755,30]
[423183742,1779910255000,-150.0,0.00027521,2]
[423183738,1779910255000,-1064.76,0.00027518,7]
[423183726,1779910255000,-4343.67,0.000274,2]
[423183736,1779910255000,-657.08,0.00027518,7]
[423183731,1779910255000,-959.0,0.000275,7]
[423183727,1779910255000,-4343.67,0.000274,2]
[423183729,1779910255000,-4343.67,0.000274,2]
[423183751,1779910255000,-222.392196,0.00027557,7]
[423183734,1779910255000,-629.59,0.00027518,7]
[423183747,1779910255000,-177.02,0.0002755,2]
[423183765,1779910255000,-339387.9136879,0.00027673,2]
[423183757,1779910255000,-175.96254717,0.0002762,30]
[423183749,1779910255000,-15000.0,0.00027552,2]
[423183758,1779910255000,-258.08,0.00027637,30]
[423183761,1779910255000,-500.0,0.00027672,30]
[423183763,1779910255000,-500.0,0.00027672,30]
[423183767,1779910255000,-151.0,0.00027673,7]
[423183775,1779910255000,-151.0,0.00027673,7]
[423183771,1779910255000,-151.0,0.00027673,7]
[423183769,1779910255000,-280.054056,0.00027673,7]
[423183773,1779910255000,-151.0,0.00027673,7]
[423183779,1779910255000,-1013.441333,0.00027673,7]
[423183777,1779910255000,-179.719601,0.00027673,7]
[423183753,1779910255000,-317.79088581,0.00027573,2]
[423183720,1779910255000,-5941.69735556,0.000274,2]
[423183781,1779910255000,-1013.441333,0.00027673,7]
[423183715,1779910255000,-12867.59,0.00027397,10]
[423183661,1779910255000,-158.13465189,0.00027397,2]
[423183665,1779910255000,-10000.0,0.00027397,30]
[423183673,1779910255000,-151.0,0.00027397,2]
[423183663,1779910255000,-1500.0,0.00027397,2]
[423183667,1779910255000,-228.9,0.00027397,8]
[423183680,1779910255000,-151.0,0.00027397,2]
[423183669,1779910255000,-281.31,0.00027397,2]
[423183676,1779910255000,-151.0,0.00027397,2]
[423183671,1779910255000,-1467.38,0.00027397,2]
[423183678,1779910255000,-151.0,0.00027397,2]
[423183683,1779910255000,-300.0,0.00027397,2]
[423183685,1779910255000,-322.693275,0.00027397,2]
[423183687,1779910255000,-322.693275,0.00027397,2]
[423183689,1779910255000,-322.693275,0.00027397,2]
[423183693,1779910255000,-516.542496,0.00027397,2]
[423183695,1779910255000,-516.542496,0.00027397,2]
[423183691,1779910255000,-322.693275,0.00027397,2]
[423183704,1779910255000,-250.977678,0.00027397,2]
[423183699,1779910255000,-516.542496,0.00027397,2]
[423183700,1779910255000,-250.977678,0.00027397,2]
[423183707,1779910255000,-250.977678,0.00027397,2]
[423183697,1779910255000,-516.542496,0.00027397,2]
[423183702,1779910255000,-250.977678,0.00027397,2]
[423183711,1779910255000,-18208.52,0.00027397,10]
[423183709,1779910255000,-21850.22,0.00027397,10]
[423183717,1779910255000,-377.36,0.000274,7]
[423183724,1779910255000,-4343.67,0.000274,2]
[423183713,1779910255000,-15173.76,0.00027397,10]
[423183783,1779910255000,-1013.441333,0.00027673,7]
[423183833,1779910255000,-258.08,0.00027939,2]
[423183787,1779910255000,-1491.72735,0.00027673,7]
[423183845,1779910255000,-160.0,0.00028,30]
[423183849,1779910255000,-319.25,0.00028,7]
[423183856,1779910255000,-700.177,0.00028,2]
[423183852,1779910255000,-208.97895572,0.00028,10]
[423183858,1779910255000,-1653.0,0.00028,10]
[423183871,1779910255000,-224.205825,0.00028024,7]
[423183873,1779910255000,-760.010803,0.00028024,7]
[423183876,1779910255000,-760.010803,0.00028024,7]
[423183878,1779910255000,-760.010803,0.00028024,7]
[423183859,1779910255000,-11768.9319941,0.00028004,2]
[423183874,1779910255000,-760.010803,0.00028024,7]
[423183863,1779910255000,-151.0,0.00028024,7]
[423183865,1779910255000,-151.0,0.00028024,7]
[423183867,1779910255000,-151.0,0.00028024,7]
[423183861,1779910255000,-134724.5281581,0.00028024,2]
[423183869,1779910255000,-151.0,0.00028024,7]
[423183880,1779910255000,-159.54,0.00028033,7]
[423183882,1779910255000,-644.79446245,0.00028067,2]
[423183886,1779910255000,-350.28,0.0002808,30]
[423183891,1779910255000,-200.0,0.00028082,2]
[423183889,1779910255000,-2000.0,0.00028082,2]
[423183884,1779910255000,-804.17102365,0.00028067,2]
[423183887,1779910255000,-150.0,0.00028081,2]
[423183897,1779910255000,-350.28,0.00028233,7]
[423183895,1779910255000,-177.02,0.0002813,7]
[423183893,1779910255000,-258.08,0.00028091,30]
[423183785,1779910255000,-1013.441333,0.00027673,7]
[423183851,1779910255000,-208.97895572,0.00028,30]
[423183847,1779910255000,-285.08163336,0.00028,60]
[423183899,1779910255000,-258.08,0.00028242,7]
[423183843,1779910255000,-600.0,0.00028,2]
[423183854,1779910255000,-208.97895572,0.00028,3]
[423183789,1779910255000,-1491.72735,0.00027673,7]
[423183792,1779910255000,-1491.72735,0.00027673,7]
[423183800,1779910255000,-322.693275,0.00027673,7]
[423183805,1779910255000,-516.542496,0.00027673,7]
[423183798,1779910255000,-322.693275,0.00027673,7]
[423183807,1779910255000,-516.542496,0.00027673,7]
[423183794,1779910255000,-322.693275,0.00027673,7]
[423183796,1779910255000,-322.693275,0.00027673,7]
[423183802,1779910255000,-516.542496,0.00027673,7]
[423183803,1779910255000,-516.542496,0.00027673,7]
[423183809,1779910255000,-250.977678,0.00027673,7]
[423183820,1779910255000,-153.322172,0.00027673,7]
[423183824,1779910255000,-258.08,0.00027788,7]
[423183791,1779910255000,-1491.72735,0.00027673,7]
[423183821,1779910255000,-350.28,0.00027773,7]
[423183825,1779910255000,-500.0,0.00027789,15]
[423183835,1779910255000,-501.0,0.00027973,5]
[423183839,1779910255000,-250.0,0.00028,2]
[423183901,1779910255000,-827.7,0.00028267,2]
[423183818,1779910255000,-151.0,0.00027673,7]
[423183837,1779910255000,-325.0,0.00028,2]
[423183813,1779910255000,-250.977678,0.00027673,7]
[423183827,1779910255000,-330.0,0.00027912,10]
[423183814,1779910255000,-250.977678,0.00027673,7]
[423183811,1779910255000,-250.977678,0.00027673,7]
[423183841,1779910255000,-377.36,0.00028,7]
[423183830,1779910255000,-350.28,0.00027926,2]
[423183816,1779910255000,-151.0,0.00027673,7]
[423183998,1779910256000,-150.0,0.00028855,2]
[423183974,1779910256000,-150.0,0.00028855,2]
[423183979,1779910256000,-150.0,0.00028855,2]
[423183981,1779910256000,-150.0,0.00028855,2]
[423183985,1779910256000,-150.0,0.00028855,2]
[423183991,1779910256000,-150.0,0.00028855,2]
[423183987,1779910256000,-150.0,0.00028855,2]
[423183983,1779910256000,-150.0,0.00028855,2]
[423184000,1779910256000,-2000.0,0.00028892,7]
[423183996,1779910256000,-150.0,0.00028855,2]
[423183976,1779910256000,-150.0,0.00028855,2]
[423183993,1779910256000,-150.0,0.00028855,2]
[423184008,1779910256000,-501.0,0.00028936,6]
[423184002,1779910256000,-150.0,0.00028897,2]
[423184004,1779910256000,-4800.0,0.000289,10]
[423184006,1779910256000,-200.0,0.00028933,2]
[423184012,1779910256000,-1092.26222106,0.00028999,15]
[423184021,1779910256000,-163.95,0.00029,2]
[423184010,1779910256000,-167.16450667,0.00028971,2]
[423184014,1779910256000,-500.0,0.00028999,30]
[423184019,1779910256000,-163.95,0.00029,2]
[423184023,1779910256000,-163.95,0.00029,2]
[423183972,1779910256000,-150.0,0.00028855,2]
[423184025,1779910256000,-163.95,0.00029,2]
[423183989,1779910256000,-150.0,0.00028855,2]
[423183968,1779910256000,-258.08,0.00028848,2]
[423183928,1779910256000,-350.28,0.0002854,30]
[423183966,1779910256000,-350.28,0.00028846,2]
[423184016,1779910256000,-38998.0,0.00029,2]
[423183905,1779910256000,-610.7,0.00028344,7]
[423183903,1779910256000,-12691.57802001,0.00028297,2]
[423183907,1779910256000,-637.37,0.00028344,7]
[423183919,1779910256000,-259.39747585,0.000284,2]
[423183917,1779910256000,-258.08,0.00028394,2]
[423183915,1779910256000,-350.28,0.00028386,2]
[423183922,1779910256000,-159.54,0.0002842,30]
[423183909,1779910256000,-1032.82,0.00028344,7]
[423183911,1779910256000,-200.0,0.00028363,2]
[423183913,1779910256000,-200.0,0.00028384,30]
[423183970,1779910256000,-150.0,0.00028855,2]
[423183924,1779910256000,-159.89883403,0.00028509,2]
[423183945,1779910256000,-201.03693739,0.00028545,30]
[423183949,1779910256000,-500.0,0.00028623,16]
[423183947,1779910256000,-377.36,0.000286,7]
[423183942,1779910256000,-258.08,0.00028545,30]
[423183953,1779910256000,-350.28,0.00028693,7]
[423183951,1779910256000,-200.0,0.00028646,2]
[423183955,1779910256000,-258.08,0.00028697,7]
[423183961,1779910256000,-500.0,0.00028767,120]
[423183964,1779910256000,-500.0,0.00028767,120]
[423183957,1779910256000,-159.54,0.0002871,7]
[423183959,1779910256000,-500.0,0.00028767,120]
[423183926,1779910256000,-159.54,0.00028516,2]
[423184027,1779910256000,-10000.0,0.00029,2]
[423184048,1779910256000,-6417.96194923,0.00029,2]
[423184040,1779910256000,-200.0,0.00029,2]
[423184091,1779910256000,-5000.01,0.00029,2]
[423184087,1779910256000,-5000.01,0.00029,2]
[423184098,1779910256000,-5000.01,0.00029,2]
[423184100,1779910256000,-1974.91128686,0.00029,2]
[423184102,1779910256000,-5000.01,0.00029,2]
[423184104,1779910256000,-5000.01,0.00029,2]
[423184107,1779910256000,-5000.01,0.00029,2]
[423184109,1779910256000,-5000.01,0.00029,2]
[423184113,1779910256000,-5000.01,0.00029,2]
[423184117,1779910256000,-3924.68734489,0.00029,2]
[423184115,1779910256000,-5000.01,0.00029,2]
[423184093,1779910256000,-5000.01,0.00029,2]
[423184126,1779910256000,-748.78854821,0.00029,2]
[423184120,1779910256000,-1463.13745366,0.00029,2]
[423184124,1779910256000,-4608.14783539,0.00029,2]
[423184122,1779910256000,-5000.01,0.00029,2]
[423184128,1779910256000,-4309.50903408,0.00029,2]
[423184029,1779910256000,-200.0,0.00029,2]
[423184130,1779910256000,-5000.01,0.00029,2]
[423184141,1779910256000,-5000.01,0.00029,2]
[423184133,1779910256000,-5000.01,0.00029,2]
[423184143,1779910256000,-5000.01,0.00029,2]
[423184135,1779910256000,-5000.01,0.00029,2]
[423184137,1779910256000,-5000.01,0.00029,2]
[423184111,1779910256000,-5000.01,0.00029,2]
[423184096,1779910256000,-5000.01,0.00029,2]
[423184139,1779910256000,-5000.01,0.00029,2]
[423184085,1779910256000,-151.0,0.00029,7]
[423184082,1779910256000,-183.16,0.00029,2]
[423184041,1779910256000,-200.0,0.00029,2]
[423184044,1779910256000,-345.05,0.00029,2]
[423184045,1779910256000,-258.16,0.00029,30]
[423184047,1779910256000,-350.29,0.00029,30]
[423184033,1779910256000,-200.0,0.00029,2]
[423184050,1779910256000,-170.10293799,0.00029,2]
[423184038,1779910256000,-200.0,0.00029,2]
[423184036,1779910256000,-200.0,0.00029,2]
[423184052,1779910256000,-10000.0,0.00029,2]
[423184064,1779910256000,-183.45,0.00029,2]
[423184070,1779910256000,-183.28,0.00029,2]
[423184031,1779910256000,-200.0,0.00029,2]
[423184056,1779910256000,-10000.0,0.00029,2]
[423184066,1779910256000,-187.0,0.00029,2]
[423184089,1779910256000,-5000.01,0.00029,2]
[423184080,1779910256000,-177.02,0.00029,30]
[423184076,1779910256000,-159.57,0.00029,30]
[423184068,1779910256000,-201.0,0.00029,2]
[423184074,1779910256000,-183.2,0.00029,2]
[423184072,1779910256000,-500.0,0.00029,2]
[423184058,1779910256000,-5947.24,0.00029,14]
[423184062,1779910256000,-10000.0,0.00029,2]
[423184060,1779910256000,-175.96729082,0.00029,30]
[423184078,1779910256000,-151.0,0.00029,7]
[423184194,1779910257000,-155.0,0.00029691,30]
[423184198,1779910257000,-486.0,0.00029691,30]
[423184196,1779910257000,-206.0,0.00029691,30]
[423184188,1779910257000,-295.0,0.00029691,30]
[423184184,1779910257000,-334.0,0.00029691,30]
[423184201,1779910257000,-215.0,0.00029691,30]
[423184202,1779910257000,-377.36,0.000297,7]
[423184205,1779910257000,-1000.0,0.000297,7]
[423184219,1779910257000,-1491.72735,0.00029899,7]
[423184220,1779910257000,-1491.72735,0.00029899,7]
[423184213,1779910257000,-191.15732096,0.00029843,7]
[423184222,1779910257000,-1491.72735,0.00029899,7]
[423184217,1779910257000,-1491.72735,0.00029899,7]
[423184210,1779910257000,-210.4189557,0.00029843,5]
[423184209,1779910257000,-319.79766806,0.00029843,2]
[423184190,1779910257000,-305.0,0.00029691,30]
[423184225,1779910257000,-322.693275,0.00029899,7]
[423184207,1779910257000,-188.64555151,0.00029843,7]
[423184186,1779910257000,-318.0,0.00029691,30]
[423184168,1779910257000,-5947.24,0.000294,14]
[423184180,1779910257000,-286.0,0.00029685,30]
[423184215,1779910257000,-239.21459169,0.00029843,7]
[423184147,1779910257000,-5000.01,0.00029,2]
[423184151,1779910257000,-10000.0,0.00029,2]
[423184153,1779910257000,-10000.0,0.00029,2]
[423184145,1779910257000,-5000.01,0.00029,2]
[423184149,1779910257000,-10000.0,0.00029,2]
[423184166,1779910257000,-152.0,0.00029251,3]
[423184155,1779910257000,-10000.0,0.00029,2]
[423184192,1779910257000,-519.0,0.00029691,30]
[423184157,1779910257000,-10000.0,0.00029,2]
[423184170,1779910257000,-500.0,0.00029481,18]
[423184159,1779910257000,-377.36,0.000291,7]
[423184164,1779910257000,-1000.88,0.0002917,7]
[423184174,1779910257000,-301.0,0.00029685,30]
[423184172,1779910257000,-907.2321503,0.00029549,2]
[423184176,1779910257000,-275.0,0.00029685,30]
[423184178,1779910257000,-1176.0,0.00029685,30]
[423184182,1779910257000,-158.0,0.00029685,30]
[423184161,1779910257000,-617.66,0.0002917,7]
[423184227,1779910257000,-322.693275,0.00029899,7]
[423184252,1779910257000,-1155.41454561,0.000299,2]
[423184230,1779910257000,-322.693275,0.00029899,7]
[423184278,1779910257000,-330.58323694,0.0003,120]
[423184279,1779910257000,-856.78229397,0.0003,2]
[423184284,1779910257000,-1000.0,0.0003,2]
[423184281,1779910257000,-2000.0,0.0003,3]
[423184283,1779910257000,-1849.69793934,0.0003,2]
[423184282,1779910257000,-1123.40053171,0.0003,2]
[423184280,1779910257000,-54613.35482456,0.0003,10]
[423184286,1779910257000,-2200.0,0.0003,120]
[423184266,1779910257000,-241.23665085,0.0002999,2]
[423184285,1779910257000,-165.88679212,0.0003,2]
[423184288,1779910257000,-267.0,0.0003,120]
[423184289,1779910257000,-160.0,0.0003,10]
[423184287,1779910257000,-650.0,0.0003,2]
[423184290,1779910257000,-151.0,0.0003,7]
[423184293,1779910257000,-151.0,0.0003,7]
[423184294,1779910257000,-151.0,0.0003,7]
[423184295,1779910257000,-200.0,0.0003,2]
[423184228,1779910257000,-322.693275,0.00029899,7]
[423184291,1779910257000,-215.46156935,0.0003,7]
[423184263,1779910257000,-245.80659135,0.00029988,30]
[423184292,1779910257000,-151.0,0.0003,7]
[423184277,1779910257000,-7000.0,0.0003,3]
[423184232,1779910257000,-516.542496,0.00029899,7]
[423184268,1779910257000,-222.392196,0.00029997,7]
[423184234,1779910257000,-516.542496,0.00029899,7]
[423184236,1779910257000,-516.542496,0.00029899,7]
[423184238,1779910257000,-516.542496,0.00029899,7]
[423184244,1779910257000,-250.977678,0.00029899,7]
[423184250,1779910257000,-250.977678,0.00029899,7]
[423184251,1779910257000,-250.977678,0.00029899,7]
[423184253,1779910257000,-501.0,0.000299,7]
[423184248,1779910257000,-250.977678,0.00029899,7]
[423184271,1779910257000,-10000.0,0.0003,10]
[423184257,1779910257000,-150.0,0.00029979,2]
[423184259,1779910257000,-150.0,0.00029979,2]
[423184255,1779910257000,-150.0,0.00029979,2]
[423184262,1779910257000,-263.0,0.00029979,2]
[423184261,1779910257000,-150.0,0.00029979,2]
[423184274,1779910257000,-1768.85376,0.0003,120]
[423184254,1779910257000,-5947.24,0.000299,14]
[423184264,1779910257000,-150.0,0.00029988,30]
[423184329,1779910258000,-151.0,0.0003013,7]
[423184325,1779910258000,-485.487886,0.0003013,7]
[423184328,1779910258000,-151.0,0.0003013,7]
[423184322,1779910258000,-485.487886,0.0003013,7]
[423184321,1779910258000,-151.0,0.0003013,7]
[423184323,1779910258000,-218.119828,0.0003013,7]
[423184327,1779910258000,-162.306659,0.0003013,7]
[423184330,1779910258000,-151.0,0.0003013,7]
[423184326,1779910258000,-485.487886,0.0003013,7]
[423184333,1779910258000,-760.010803,0.0003013,7]
[423184342,1779910258000,-324.52,0.00030137,2]
[423184331,1779910258000,-760.010803,0.0003013,7]
[423184334,1779910258000,-760.010803,0.0003013,7]
[423184335,1779910258000,-4773.12608269,0.00030135,120]
[423184337,1779910258000,-228.9,0.00030137,31]
[423184336,1779910258000,-269.0,0.00030135,120]
[423184339,1779910258000,-151.0,0.00030137,7]
[423184340,1779910258000,-197.284723,0.00030137,7]
[423184343,1779910258000,-10000.0,0.00030137,30]
[423184324,1779910258000,-485.487886,0.0003013,7]
[423184332,1779910258000,-760.010803,0.0003013,7]
[423184319,1779910258000,-174741.51633125,0.0003013,7]
[423184297,1779910258000,-1013.441333,0.0003,7]
[423184318,1779910258000,-205.25366082,0.0003013,2]
[423184299,1779910258000,-1013.441333,0.0003,7]
[423184296,1779910258000,-215.46156935,0.0003,3]
[423184300,1779910258000,-1013.441333,0.0003,7]
[423184345,1779910258000,-200.0,0.00030137,40]
[423184298,1779910258000,-1013.441333,0.0003,7]
[423184302,1779910258000,-200.0,0.0003,2]
[423184301,1779910258000,-200.0,0.0003,2]
[423184304,1779910258000,-208.97895572,0.0003,7]
[423184305,1779910258000,-208.97895572,0.0003,10]
[423184306,1779910258000,-200.0,0.0003,2]
[423184320,1779910258000,-151.880331,0.0003013,7]
[423184303,1779910258000,-208.97895572,0.0003,3]
[423184308,1779910258000,-150.0,0.00030108,2]
[423184309,1779910258000,-150.0,0.00030108,2]
[423184312,1779910258000,-150.0,0.00030108,2]
[423184310,1779910258000,-150.0,0.00030108,2]
[423184311,1779910258000,-150.0,0.00030108,2]
[423184313,1779910258000,-168.0,0.00030108,2]
[423184314,1779910258000,-500.0,0.00030129,30]
[423184315,1779910258000,-1092.59010521,0.0003013,2]
[423184317,1779910258000,-262.56900006,0.0003013,120]
[423184316,1779910258000,-645.20139965,0.0003013,2]
[423184307,1779910258000,-150.0,0.00030108,2]
[423184341,1779910258000,-200.0,0.00030137,2]
[423184338,1779910258000,-281.31,0.00030137,2]
[423184346,1779910258000,-198.94,0.00030137,15]
[423184374,1779910258000,-242.08103259,0.00030733,5]
[423184371,1779910258000,-319.25,0.000307,7]
[423184377,1779910258000,-478.42918338,0.00030733,7]
[423184372,1779910258000,-377.29110303,0.00030733,7]
[423184376,1779910258000,-382.31464193,0.00030733,7]
[423184375,1779910258000,-420.83791139,0.00030733,5]
[423184380,1779910258000,-500.0,0.00030836,30]
[423184379,1779910258000,-833.92535152,0.00030806,2]
[423184388,1779910258000,-207.37607811,0.00030837,2]
[423184390,1779910258000,-204.52,0.00030991,120]
[423184384,1779910258000,-151.0,0.00030837,7]
[423184382,1779910258000,-151.0,0.00030837,7]
[423184385,1779910258000,-151.0,0.00030837,7]
[423184389,1779910258000,-501.0,0.00030863,8]
[423184383,1779910258000,-151.0,0.00030837,7]
[423184387,1779910258000,-71198.06319187,0.00030837,2]
[423184386,1779910258000,-151.0,0.00030837,7]
[423184392,1779910258000,-350.42967705,0.00031,5]
[423184391,1779910258000,-14316.85307578,0.00031,5]
[423184393,1779910258000,-254.13290355,0.00031,120]
[423184344,1779910258000,-1752.0,0.00030137,30]
[423184378,1779910258000,-668.65185756,0.00030806,2]
[423184373,1779910258000,-479.69650209,0.00030733,2]
[423184381,1779910258000,-151.0,0.00030837,7]
[423184368,1779910258000,-155.0,0.00030691,30]
[423184370,1779910258000,-486.0,0.00030691,30]
[423184347,1779910258000,-377.36,0.000302,7]
[423184354,1779910258000,-150.0,0.00030411,120]
[423184357,1779910258000,-274.81214436,0.00030605,2]
[423184349,1779910258000,-968.93,0.0003027,7]
[423184356,1779910258000,-12691.57802001,0.00030498,2]
[423184353,1779910258000,-199.96,0.00030411,120]
[423184350,1779910258000,-5947.24,0.000303,14]
[423184351,1779910258000,-150.0,0.00030341,2]
[423184352,1779910258000,-500.0,0.00030366,20]
[423184355,1779910258000,-183.0,0.00030411,120]
[423184348,1779910258000,-827.7,0.00030239,2]
[423184359,1779910258000,-275.0,0.00030685,30]
[423184358,1779910258000,-301.0,0.00030685,30]
[423184361,1779910258000,-286.0,0.00030685,30]
[423184365,1779910258000,-295.0,0.00030691,30]
[423184360,1779910258000,-1176.0,0.00030685,30]
[423184369,1779910258000,-206.0,0.00030691,30]
[423184366,1779910258000,-305.0,0.00030691,30]
[423184363,1779910258000,-334.0,0.00030691,30]
[423184362,1779910258000,-158.0,0.00030685,30]
[423184364,1779910258000,-318.0,0.00030691,30]
[423184367,1779910258000,-519.0,0.00030691,30]
[423184427,1779910259000,-334.0,0.00031691,30]
[423184424,1779910259000,-1176.0,0.00031685,30]
[423184421,1779910259000,-151.0,0.00031684,7]
[423184423,1779910259000,-275.0,0.00031685,30]
[423184422,1779910259000,-301.0,0.00031685,30]
[423184425,1779910259000,-286.0,0.00031685,30]
[423184420,1779910259000,-151.0,0.00031684,7]
[423184429,1779910259000,-295.0,0.00031691,30]
[423184428,1779910259000,-318.0,0.00031691,30]
[423184433,1779910259000,-206.0,0.00031691,30]
[423184426,1779910259000,-158.0,0.00031685,30]
[423184431,1779910259000,-519.0,0.00031691,30]
[423184432,1779910259000,-155.0,0.00031691,30]
[423184434,1779910259000,-486.0,0.00031691,30]
[423184436,1779910259000,-557.70270824,0.00031716,54]
[423184435,1779910259000,-557.70270824,0.00031716,54]
[423184438,1779910259000,-277.72,0.000318,60]
[423184448,1779910259000,-283.91208686,0.00032,120]
[423184440,1779910259000,-501.0,0.00031826,9]
[423184437,1779910259000,-176.06216356,0.0003178,30]
[423184419,1779910259000,-152.0,0.00031672,4]
[423184430,1779910259000,-305.0,0.00031691,30]
[423184418,1779910259000,-167.16450667,0.00031578,2]
[423184449,1779910259000,-198.52157595,0.00032,120]
[423184417,1779910259000,-250.0,0.00031506,7]
[423184402,1779910259000,-515.27277018,0.00031322,2]
[423184401,1779910259000,-453.0063915,0.00031277,22]
[423184400,1779910259000,-200.0,0.00031096,2]
[423184395,1779910259000,-160.0,0.00031,120]
[423184396,1779910259000,-160.0,0.00031,7]
[423184397,1779910259000,-215.46156935,0.00031,7]
[423184394,1779910259000,-250.0,0.00031,2]
[423184398,1779910259000,-208.97895572,0.00031,120]
[423184399,1779910259000,-208.97895572,0.00031,7]
[423184405,1779910259000,-558.20397708,0.00031324,2]
[423184415,1779910259000,-155.207636,0.00031326,7]
[423184403,1779910259000,-154.1402235,0.00031322,7]
[423184406,1779910259000,-233.43335116,0.00031326,7]
[423184413,1779910259000,-227.07116316,0.00031326,7]
[423184404,1779910259000,-184.8778881,0.00031322,2]
[423184409,1779910259000,-213.13909119,0.00031326,7]
[423184408,1779910259000,-639.59533612,0.00031326,2]
[423184407,1779910259000,-565.93665454,0.00031326,7]
[423184410,1779910259000,-484.16206517,0.00031326,5]
[423184412,1779910259000,-236.60698335,0.00031326,7]
[423184414,1779910259000,-573.47196289,0.00031326,7]
[423184416,1779910259000,-717.64377506,0.00031326,7]
[423184411,1779910259000,-631.25686709,0.00031326,5]
[423184442,1779910259000,-330.0,0.00031975,22]
[423184452,1779910259000,-185.88478102,0.00032,120]
[423184439,1779910259000,-319.25,0.000318,7]
[423184471,1779910259000,-180.0,0.00032056,8]
[423184472,1779910259000,-187.0,0.00032124,3]
[423184470,1779910259000,-200.0,0.00032055,2]
[423184469,1779910259000,-181.40211907,0.00032,120]
[423184473,1779910259000,-827.7,0.0003221,5]
[423184477,1779910259000,-1356.0,0.00032233,2]
[423184476,1779910259000,-1234.947,0.00032233,2]
[423184479,1779910259000,-301.0,0.00032685,30]
[423184488,1779910259000,-519.0,0.00032691,30]
[423184486,1779910259000,-295.0,0.00032691,30]
[423184478,1779910259000,-928.0,0.00032233,2]
[423184480,1779910259000,-275.0,0.00032685,30]
[423184483,1779910259000,-158.0,0.00032685,30]
[423184482,1779910259000,-286.0,0.00032685,30]
[423184485,1779910259000,-318.0,0.00032691,30]
[423184487,1779910259000,-305.0,0.00032691,30]
[423184484,1779910259000,-334.0,0.00032691,30]
[423184490,1779910259000,-206.0,0.00032691,30]